{"text_format":"1","workbook":"xlsx","n_sheets":10,"sheets":["Intro","ANAGRAFICA","BISOGNI","OBIETTIVI","MODELLO FORMATIVO","RISORSE UMANE","QUALIFICA E COMPETENZA R. U.","SCHEDA ATTIVITA DIDATTICA","COSTO DELLE RISORSE UMANE","PIANO GENERALE DEI COSTI"],"not_rendered":{"charts":0,"images":1,"macros":1,"external_links":0,"defined_names":32,"comments":0,"pivot_tables":0},"unopened":[],"bounds":{"document_bytes":16777216,"sheet_cells":100000,"rows_first":2000,"rows_last":500,"rows_between":2000,"halvings":0,"cell_chars":16384,"cell_head_chars":4096},"cells_cut":0,"cells_raw":0,"read":"whole","date_system":"1900"}

{"sheet":"Intro","index":0,"n_rows":50,"n_cols":19,"rows_kept":50,"cut":false,"hidden":false,"merged":[[53,18,53,35],[10,1,11,34],[13,1,14,34],[15,1,16,34],[7,3,8,33],[40,1,42,7],[40,8,42,34],[49,18,50,34],[18,1,19,34],[21,1,22,34],[24,1,26,34],[34,1,35,7],[34,8,35,34],[37,1,38,7],[37,8,38,34],[31,1,32,34],[28,1,29,34]]}
[]
[]
[]
[]
[]
[]
[]
[null,null,null,"REGIONE PUGLIA"]
[]
[]
[null,"Dipartimento Agricoltura, Sviluppo Rurale e Ambiente"]
[]
[]
[null,"Programma di Sviluppo Rurale (PSR) 2014-2020 Puglia"]
[]
[null,"Articolo 14 del Regolamento (UE) n. 1305/2013"]
[]
[]
[null,"Misura 1 “Trasferimento di conoscenze e azioni di informazione \""]
[]
[]
[null,"Sottomisura 1.1 “Sostegno ad azioni di formazione professionale e acquisizione di competenze”"]
[]
[]
[null,"AVVISO PUBBLICO PER LA PRESENTAZIONE DELLE DOMANDE DI SOSTEGNO DI CUI ALLA SOTTOMISURA 1.1 "]
[]
[]
[]
[null,"ALLEGATO 1 - FORMAT DI PROGETTO"]
[]
[]
[null,"PROGETTO FORMATIVO"]
[]
[]
[null,"DENOMINAZIONE"]
[]
[]
[null,"CUAA"]
[]
[]
[null,"TITOLO DEL CORSO"]
[]
[]
[]
[]
[]
[]
[]
[]
[null,null,null,null,null,null,null,null,null,null,null,null,null,null,null,null,null,null,"Firma del Rappresentante Legale"]

{"sheet":"ANAGRAFICA","index":1,"n_rows":58,"n_cols":33,"rows_kept":58,"cut":false,"hidden":false,"merged":[[12,2,13,9],[21,2,22,9],[23,2,24,9],[25,2,26,9],[23,10,24,38],[25,10,26,38],[14,2,15,9],[16,2,17,9],[18,2,20,9],[19,32,20,38],[18,10,20,31],[18,32,18,38],[21,10,22,38],[39,2,39,38],[41,2,56,38],[57,27,57,38],[0,2,1,38],[4,10,5,38],[6,10,7,38],[8,10,9,38],[10,10,11,38],[10,2,11,9],[6,2,7,9],[4,2,5,9],[8,2,9,9],[12,10,13,38],[14,10,15,38],[16,10,17,38],[30,2,31,9],[36,2,37,9],[34,2,35,9],[28,2,28,38],[30,10,31,38],[32,10,33,38],[34,10,35,38],[36,10,37,38],[32,2,33,9]]}
[null,null,"DATI ANAGRAFICI"]
[]
[]
[]
[null,null,"DENOMINAZIONE",null,null,null,null,null,null,null,{"$f":"IF(Intro!I35=\"\",\"\",Intro!I35)","v":""}]
[]
[null,null,"CODICE ACCREDITAMENTO"]
[]
[null,null,"NATURA GIURIDICA"]
[]
[null,null,"CODICE FISCALE"]
[]
[null,null,"P. IVA"]
[]
[null,null,"RAPPRESENTANTE LEGALE"]
[]
[null,null,"INDIRIZZO SEDE LEGALE"]
[]
[null,null,"INDIRIZZO SEDE OPERATIVA UTILIZZATA PER IL CORSO",null,null,null,null,null,null,null,null,null,null,null,null,null,null,null,null,null,null,null,null,null,null,null,null,null,null,null,null,null,"TIPOLOGIA"]
[]
[]
[null,null,"TEL / FAX"]
[]
[null,null,"E-MAIL"]
[]
[null,null,"PEC"]
[]
[]
[null,null,"DATI DEL RESPONSABILE DEL PROGETTO"]
[]
[null,null,"NOME"]
[]
[null,null,"COGNOME"]
[]
[null,null,"TEL/FAX"]
[]
[null,null,"E-MAIL"]
[]
[]
[null,null,"BREVE DESCRIZIONE DEL SOGGETTO PROPONENTE "]
[]
[]
[]
[]
[]
[]
[]
[]
[]
[]
[]
[]
[]
[]
[]
[]
[]
[null,null,null,null,null,null,null,null,null,null,null,null,null,null,null,null,null,null,null,null,null,null,null,null,null,null,null,"[MAX 1.500 CARATTERI (SPAZI INCLUSI)]"]

{"sheet":"BISOGNI","index":2,"n_rows":58,"n_cols":27,"rows_kept":58,"cut":false,"hidden":false,"merged":[[0,1,1,37],[3,1,4,37],[6,1,56,37],[57,26,57,37]]}
[null,"ANALISI DEI FABBISOGNI FORMATIVI"]
[]
[]
[null,"CONFIGURAZIONE GENERALE DEL PROGETTO FORMATIVO, CONTESTO DI RIFERIMENTO ED ESIGENZE FORMATIVE CHE SI INTENDONO SODDISFARE"]
[]
[]
[]
[]
[]
[]
[]
[]
[]
[]
[]
[]
[]
[]
[]
[]
[]
[]
[]
[]
[]
[]
[]
[]
[]
[]
[]
[]
[]
[]
[]
[]
[]
[]
[]
[]
[]
[]
[]
[]
[]
[]
[]
[]
[]
[]
[]
[]
[]
[]
[]
[]
[]
[null,null,null,null,null,null,null,null,null,null,null,null,null,null,null,null,null,null,null,null,null,null,null,null,null,null,"[MAX 5.000 CARATTERI (SPAZI INCLUSI)]"]

{"sheet":"OBIETTIVI","index":3,"n_rows":121,"n_cols":40,"rows_kept":121,"cut":false,"hidden":false,"merged":[[99,1,101,32],[108,1,119,37],[120,26,120,37],[102,1,104,32],[96,33,98,37],[99,33,101,37],[102,33,104,37],[106,1,106,37],[92,1,92,37],[94,1,95,32],[94,33,95,37],[96,1,98,32],[90,1,90,37],[87,25,89,29],[59,1,59,37],[60,1,61,37],[62,1,63,37],[87,7,89,24],[69,25,71,29],[72,25,74,29],[75,25,77,29],[78,25,80,29],[81,25,83,29],[75,7,77,24],[84,7,86,24],[81,7,83,24],[65,1,65,37],[67,7,68,24],[69,7,71,24],[72,7,74,24],[78,7,80,24],[67,25,68,29],[84,25,86,29],[0,1,1,37],[3,1,3,37],[5,1,6,37],[58,26,58,37],[7,1,57,37]]}
[null,"DESCRIZIONE DEGLI OBIETTIVI"]
[]
[]
[null,"OBIETTIVI FORMATIVI DEL PROGETTO"]
[]
[null,"Illustrare la coerenza degli obiettivi formativi con le Focus Area, con i fabbisogni individuati dall'analisi SWOT del PSR e con gli obiettivi trasversali del PSR: ambiente, clima e innovazione (Principio 1 dei CdS - Obiettivi formativi)"]
[]
[]
[]
[]
[]
[]
[]
[]
[]
[]
[]
[]
[]
[]
[]
[]
[]
[]
[]
[]
[]
[]
[]
[]
[]
[]
[]
[null,null,null,null,null,null,null,null,null,null,null,null,null,null,null,null,null,null,null,null,null,null,null,null,null,null,null,null,null,null,null,null,null,null,null,null,null,null,null," "]
[]
[]
[]
[]
[]
[]
[]
[]
[]
[]
[]
[]
[]
[]
[]
[]
[]
[]
[]
[]
[]
[]
[]
[]
[null,null,null,null,null,null,null,null,null,null,null,null,null,null,null,null,null,null,null,null,null,null,null,null,null,null,"[MAX 5.000 CARATTERI (SPAZI INCLUSI)]"]
[null,"CAMPO DI APPLICAZIONE "]
[null,"Indicare se il progetto formativo rientra nel campo di applicazione attinente argomenti che riguardano prodotti ricompresi nell'Allegato 1 del TFUE o  argomenti del settore forestale di cui all'articolo 38 del Reg UE 702/2014"]
[]
[]
[]
[]
[null,"TEMATICHE PRINCIPALI"]
[]
[null,null,null,null,null,null,null,"DESCRIZIONE",null,null,null,null,null,null,null,null,null,null,null,null,null,null,null,null,null,"TEMATICA PRESCELTA"]
[]
[null,null,null,null,null,null,null,"a) Aumento sostenibile della produttività, della redditività ed efficienza delle risorse negli agro-ecosistemi"]
[]
[]
[null,null,null,null,null,null,null,"b) Funzionalità dei suoli"]
[]
[]
[null,null,null,null,null,null,null,"c) Servizi ecologici e sociali dell'agricoltura"]
[]
[]
[null,null,null,null,null,null,null,"d) Coordinamento e integrazione dei processi di filiera e potenziamento del ruolo dell’agricoltura"]
[]
[]
[null,null,null,null,null,null,null,"e) Qualità, tipicità e sicurezza dei prodotti agricoli"]
[]
[]
[null,null,null,null,null,null,null,"f) Qualità, tipicità e sicurezza degli alimenti e stili di vita sani"]
[]
[]
[null,null,null,null,null,null,null,"g) Utilizzo sostenibile delle risorse biologiche a fini energetici e industriali"]
[]
[]
[null,"E' possibile indicare più tematiche all'interno dello stesso campo di applicazione"]
[]
[null,"TEMATICHE PRIORITARIE LEGATE AL PROGETTO"]
[]
[null,"DESCRIZIONE",null,null,null,null,null,null,null,null,null,null,null,null,null,null,null,null,null,null,null,null,null,null,null,null,null,null,null,null,null,null,null,"TEMATICA PRESCELTA"]
[]
[null,"a) Innovazione nel campo agricolo, agro-alimentare e forestale"]
[]
[]
[null,"b) Temi di carattere ambientale, quali la mitigazione e l’adattamento ai cambiamenti climatici, l’energia rinnovabile, la gestione delle risorse idriche e la biodiversità"]
[]
[]
[null,"c) Obblighi a livello aziendale derivanti da Criteri di Gestione Obbligatori (CGO) e/o norme relative alle Buone Condizioni Agronomiche e Ambientali (BCAA)"]
[]
[]
[]
[null,"DESCRIZIONE SINTETICA DEL PROGETTO E DELLE TEMATICHE DI RIFERIMENTO"]
[]
[]
[]
[]
[]
[]
[]
[]
[]
[]
[]
[]
[]
[null,null,null,null,null,null,null,null,null,null,null,null,null,null,null,null,null,null,null,null,null,null,null,null,null,null,"[MAX 1.500 CARATTERI (SPAZI INCLUSI)]"]

{"sheet":"MODELLO FORMATIVO","index":4,"n_rows":313,"n_cols":35,"rows_kept":313,"cut":false,"hidden":false,"merged":[[224,1,224,25],[224,26,224,29],[224,30,224,33],[224,34,224,37],[219,30,219,33],[219,26,219,29],[220,26,220,29],[221,26,221,29],[223,26,223,29],[222,30,222,33],[222,34,222,37],[223,30,223,33],[223,34,223,37],[222,26,222,29],[220,30,220,33],[221,30,221,33],[219,34,219,37],[221,20,221,25],[220,20,220,25],[219,20,219,25],[312,26,312,37],[259,1,259,37],[261,1,261,37],[285,26,285,37],[258,26,258,37],[247,1,257,37],[287,1,288,37],[228,1,229,37],[241,26,241,37],[243,1,246,37],[190,1,191,37],[193,1,212,37],[219,12,219,19],[219,1,221,11],[220,34,220,37],[221,34,221,37],[163,1,163,37],[164,1,188,37],[5,1,6,22],[7,1,8,22],[9,1,10,22],[11,1,12,22],[5,23,6,30],[7,23,8,30],[29,11,32,15],[29,16,32,20],[29,21,32,25],[29,26,32,30],[15,1,15,37],[16,1,16,22],[16,23,16,25],[17,23,17,25],[16,26,16,30],[17,26,17,30],[16,31,16,37],[17,31,17,37],[18,1,18,22],[18,23,18,25],[18,26,18,30],[36,1,39,9],[20,1,20,37],[22,1,24,5],[22,6,24,10],[22,11,24,15],[22,16,24,20],[22,21,24,25],[22,26,24,30],[22,31,24,37],[36,28,39,37],[40,1,43,9],[40,10,43,18],[104,1,105,37],[107,1,108,37],[159,26,159,37],[49,1,50,37],[52,1,52,37],[53,1,102,37],[103,26,103,37],[217,1,218,25],[217,26,218,29],[217,30,218,33],[217,34,218,37],[5,31,6,37],[7,31,8,37],[9,31,10,37],[11,31,12,37],[11,23,12,30],[109,1,158,37],[25,11,28,15],[25,16,28,20],[25,21,28,25],[25,26,28,30],[25,31,28,37],[29,1,32,5],[29,6,32,10],[18,31,18,37],[17,1,17,22],[29,31,32,37],[13,26,13,37],[161,1,161,37],[36,10,39,18],[36,19,39,27],[226,1,226,37],[230,1,240,37],[222,1,222,25],[223,1,223,25],[263,1,264,37],[265,1,284,37],[290,1,291,37],[292,1,311,37],[0,1,1,37],[3,1,3,37],[25,1,28,5],[25,6,28,10],[220,12,221,19],[40,28,43,37],[44,1,47,9],[44,10,47,18],[44,19,47,27],[44,28,47,37],[215,1,215,37],[213,26,213,37],[189,26,189,37],[34,1,34,37],[9,23,10,30],[40,19,43,27]]}
[null,"METODOLOGIE FORMATIVE"]
[]
[]
[null,"INDICAZIONE DELLA TIPOLOGIA DEL CORSO DA ATTIVARE"]
[]
[null,"DESCRIZIONE",null,null,null,null,null,null,null,null,null,null,null,null,null,null,null,null,null,null,null,null,null,"BARRARE LA CASELLA INTERESSATA",null,null,null,null,null,null,null,"MONTE ORE PREVISTO"]
[]
[null,"ATTIVITA' DI FORMAZIONE COLLETTIVA"]
[]
[null,"ATTIVITA' DI TRASFERIMENTO INDIVIDUALE"]
[]
[null,"ATTIVITA' DI COACHING"]
[]
[null,null,null,null,null,null,null,null,null,null,null,null,null,null,null,null,null,null,null,null,null,null,null,null,null,null,"[BARRARE SOLO UN MODELLO FORMATIVO]"]
[]
[null,"NEL CASO DI ATTIVITA' DI FORMAZIONE COLLETTIVA"]
[null,"INTERVENTO PROPOSTO",null,null,null,null,null,null,null,null,null,null,null,null,null,null,null,null,null,null,null,null,null,"SI/NO",null,null,"N. DI ORE",null,null,null,null,"LIMITE MAX ORE"]
[null,"Sono previsti corsi a distanza (FAD)",null,null,null,null,null,null,null,null,null,null,null,null,null,null,null,null,null,null,null,null,null,null,null,null,null,null,null,null,null,{"$f":"IF(AF8>0,AF8/100*25,\"\")","v":""}]
[null,"Sono previsti dei seminari",null,null,null,null,null,null,null,null,null,null,null,null,null,null,null,null,null,null,null,null,null,null,null,null,null,null,null,null,null,{"$f":"IF(AF8>0,AF8/100*20,\"\")","v":""}]
[]
[null,"PIATTAFORMA UTILIZZATA PER LA FRUIZIONE DEL CORSO FAD"]
[]
[null,"TIPO DI SUPPORTO UTILIZZATO",null,null,null,null,"TIPO DI CONNESSIONE",null,null,null,null,"TUTORAGGIO            ON-LINE",null,null,null,null,"ASSISTENZA INFORMATICA",null,null,null,null,"DOCENTE / ESPERTO DEI CONTENUTI",null,null,null,null,"MODULO TRATTATO",null,null,null,null,"TIPOLOGIA E CONTENUTI DEL MATERIALE DIDATTICO"]
[]
[]
[]
[]
[]
[]
[]
[]
[]
[]
[]
[null,"TRACCIABILITA' E CONTROLLO SULLE PRESENZE, VERIFICA DEI RISULTATI DI APPRENDIMENTO DELLA FAD"]
[]
[null,"Modulo Formativo trattato",null,null,null,null,null,null,null,null,"Sistemi di tracciabilità delle frequenze degli allievi e delle attività svolte",null,null,null,null,null,null,null,null,"Descrizione delle modalità di controllo sulle presenze degli allievi e sui livelli di frequenza finali",null,null,null,null,null,null,null,null,"Descrizione dei metodi di verifica dei risultati di apprendimento degli allievi"]
[]
[]
[]
[]
[]
[]
[]
[]
[]
[]
[]
[]
[null,"DESCRIZIONE DELLE METODOLOGIE FORMATIVE DA UTILIZZARE NEL PROGETTO CON EVIDENZA DEL METODO DIDATTICO E DELLE SPECIFICHE TECNICHE RISPETTO ALLE TEMATICHE TRATTATE"]
[]
[]
[null,"Illustrare puntualmente le metodologie formative (Principio 1 dei CdS - Metodologie formative)"]
[]
[]
[]
[]
[]
[]
[]
[]
[]
[]
[]
[]
[]
[]
[]
[]
[]
[]
[]
[]
[]
[]
[]
[]
[]
[]
[]
[]
[]
[]
[]
[]
[]
[]
[]
[]
[]
[]
[]
[]
[]
[]
[]
[]
[]
[]
[]
[]
[]
[]
[null,null,null,null,null,null,null,null,null,null,null,null,null,null,null,null,null,null,null,null,null,null,null,null,null,null,"[MAX 5.000 CARATTERI (SPAZI INCLUSI)]"]
[null,"SCELTE ORGANIZZATIVE DEL PROGETTO FORMATIVO CON RIFERIMENTO AI MODULI FORMATIVI,  ALLA DURATA DEL CORSO, ALLA TEMPISTICA DI SVOLGIMENTO, ALLA LOCALIZZAZIONE E IDONEITÀ DELLA SEDE"]
[]
[]
[null,"Illustrare la coerenza ed adeguatezza delle scelte organizzative del progetto formativo rispetto agli obiettivi (Principio 1 dei CdS - Scelte organizzative)"]
[]
[]
[]
[]
[]
[]
[]
[]
[]
[]
[]
[]
[]
[]
[]
[]
[]
[]
[]
[]
[]
[]
[]
[]
[]
[]
[]
[]
[]
[]
[]
[]
[]
[]
[]
[]
[]
[]
[]
[]
[]
[]
[]
[]
[]
[]
[]
[]
[]
[]
[]
[null,null,null,null,null,null,null,null,null,null,null,null,null,null,null,null,null,null,null,null,null,null,null,null,null,null,"[MAX 2.000 CARATTERI (SPAZI INCLUSI)]"]
[]
[null,"VISITE DIDATTICHE DI APPROFONDIMENTO"]
[]
[null,"Se previste nel progetto, indicare il numero, le possibili destinazioni e la durata indicativa, evidenziandone il valore rispetto agli obiettivi formativi"]
[]
[]
[]
[]
[]
[]
[]
[]
[]
[]
[]
[]
[]
[]
[]
[]
[]
[]
[]
[]
[]
[]
[]
[]
[]
[null,null,null,null,null,null,null,null,null,null,null,null,null,null,null,null,null,null,null,null,null,null,null,null,null,null,"[MAX 2.000 CARATTERI (SPAZI INCLUSI)]"]
[null,"DESCRIZIONE DEL MATERIALE DIDATTICO CARTACEO E/O MULTIMEDIALE PREVISTO PER I PARTECIPANTI: LIBRO A STAMPA, SCHEDE INFORMATIVE ED ALTRO MATERIALE ILLUSTRATIVO  "]
[]
[]
[]
[]
[]
[]
[]
[]
[]
[]
[]
[]
[]
[]
[]
[]
[]
[]
[]
[]
[]
[]
[null,null,null,null,null,null,null,null,null,null,null,null,null,null,null,null,null,null,null,null,null,null,null,null,null,null,"[MAX 2.000 CARATTERI (SPAZI INCLUSI)]"]
[]
[null,"DESTINATARI"]
[]
[null,"TIPOLOGIA DEI DESTINATARI DEL PROGETTO",null,null,null,null,null,null,null,null,null,null,null,null,null,null,null,null,null,null,null,null,null,null,null,null,"N. partecipanti. attività collettiva",null,null,null,"N. partecipanti. attività individuale",null,null,null,"N. partecipanti. attività coaching"]
[]
[null,"IMPRESA AGRICOLA",null,null,null,null,null,null,null,null,null,null,"GIOVANE AGRICOLTORE",null,null,null,null,null,null,null,"MICROIMPRESA"]
[null,null,null,null,null,null,null,null,null,null,null,null,null,null,null,null,null,null,null,null,"PICCOLA IMPRESA"]
[null,null,null,null,null,null,null,null,null,null,null,null,null,null,null,null,null,null,null,null,"MEDIA IMPRESA"]
[null,"GESTORI DEL TERRITORIO (ANCHE DETENTORI DI AREE FORESTALI) che esercitano attivià economica"]
[null,"IMPRESA FORESTALE"]
[null,"TOTALE DEI PARTECIPANTI PREVISTI",null,null,null,null,null,null,null,null,null,null,null,null,null,null,null,null,null,null,null,null,null,null,null,null,{"$f":"IF(SUM(AA220:AD224)>22,\"NON AMMISSIBILE\",SUM(AA220:AD224))","v":0},null,null,null,{"$f":"SUM(AE220:AH224)","v":0},null,null,null,{"$f":"SUM(AI220:AL224)","v":0}]
[]
[null,"MODALITA'  DI REPERIMENTO DEI DESTINATARI"]
[]
[null,"Descrivere le azioni e i canali di diffusione più efficaci rispetto alla tipologia di progetto che si intendono attivare per raggiungere e informare il più ampio numero di potenziali destinatari"]
[]
[]
[]
[]
[]
[]
[]
[]
[]
[]
[]
[]
[null,null,null,null,null,null,null,null,null,null,null,null,null,null,null,null,null,null,null,null,null,null,null,null,null,null,"[MAX 1.000 CARATTERI (SPAZI INCLUSI)]"]
[]
[null,"Descrivere le modalità che hanno favorito il reclutamento, in via prioritaria, ai giovani agricoltori (anche insediati nei cinque anni precedenti), agli imprenditori agricoli che utilizzano metodi di agricoltura biologica, integrata e/o conservativa e agli imprenditori che diversificano la propria attività."]
[]
[]
[]
[]
[]
[]
[]
[]
[]
[]
[]
[]
[]
[]
[null,null,null,null,null,null,null,null,null,null,null,null,null,null,null,null,null,null,null,null,null,null,null,null,null,null,"[MAX 1.000 CARATTERI (SPAZI INCLUSI)]"]
[null,"SISTEMA DI VERIFICA"]
[]
[null,"DESCRIZIONE DEI METODI DI VALUTAZIONE DELL'APPRENDIMENTO INIZIALE, IN ITINERE E FINALE DA UTILIZZARE"]
[]
[null,"Descrivere la struttura delle prove di verifica del raggiungimento dei risultati attesi, comprensiva delle prove intermedie e delle prove finali (Principio 3 dei CdS - Qualità e affidabilità del sistema di verifica)"]
[]
[]
[]
[]
[]
[]
[]
[]
[]
[]
[]
[]
[]
[]
[]
[]
[]
[]
[]
[]
[]
[null,null,null,null,null,null,null,null,null,null,null,null,null,null,null,null,null,null,null,null,null,null,null,null,null,null,"[MAX 2.000 CARATTERI (SPAZI INCLUSI)]"]
[]
[null,"STRATEGIE ATTUATE PER LA GESTIONE DEI RISCHI E PROPOSTE DI INTERVENTO PER IL CONTROLLO E/O LA RIDUZIONE DEI RISCHI DI MANCATO RAGGIUNGIMENTO DEI RISULTATI"]
[]
[]
[null,"Descrivere le modalità di rilevazione dell’andamento attuativo e di valutazione finale del  progetto; precisare chi svolge le relative funzioni (Principio 3 dei CdS - Qualità e affidabilità del sistema di verifica)"]
[]
[]
[]
[]
[]
[]
[]
[]
[]
[]
[]
[]
[]
[]
[]
[]
[]
[]
[]
[]
[]
[null,null,null,null,null,null,null,null,null,null,null,null,null,null,null,null,null,null,null,null,null,null,null,null,null,null,"[MAX 2.000 CARATTERI (SPAZI INCLUSI)]"]

{"sheet":"RISORSE UMANE","index":5,"n_rows":84,"n_cols":68,"rows_kept":84,"cut":false,"hidden":false,"merged":[[71,67,74,74],[75,67,78,74],[79,67,82,74],[75,19,78,33],[75,34,78,48],[75,49,78,66],[83,1,84,74],[79,1,82,9],[79,10,82,18],[71,1,74,9],[71,10,74,18],[75,1,78,9],[75,10,78,18],[71,19,74,33],[71,34,74,48],[71,49,74,66],[79,19,82,33],[79,34,82,48],[79,49,82,66],[55,67,58,74],[59,67,62,74],[63,67,66,74],[67,1,70,9],[67,10,70,18],[63,19,66,33],[63,34,66,48],[63,49,66,66],[67,19,70,33],[67,34,70,48],[67,49,70,66],[67,67,70,74],[55,19,58,33],[55,34,58,48],[55,49,58,66],[59,19,62,33],[63,1,66,9],[63,10,66,18],[55,1,58,9],[55,10,58,18],[59,1,62,9],[59,10,62,18],[59,34,62,48],[59,49,62,66],[35,49,38,66],[39,49,42,66],[51,10,54,18],[47,19,50,33],[47,34,50,48],[19,19,22,33],[23,19,26,33],[27,19,30,33],[31,19,34,33],[35,19,38,33],[39,19,42,33],[19,34,22,48],[23,34,26,48],[27,34,30,48],[31,34,34,48],[35,34,38,48],[39,34,42,48],[19,49,22,66],[23,49,26,66],[27,49,30,66],[47,10,50,18],[15,1,18,9],[19,1,22,9],[7,19,10,33],[7,34,10,48],[7,49,10,66],[47,1,50,9],[51,1,54,9],[47,49,50,66],[51,19,54,33],[51,34,54,48],[51,49,54,66],[11,19,14,33],[15,19,18,33],[11,34,14,48],[15,34,18,48],[11,49,14,66],[15,49,18,66],[44,1,45,74],[47,67,50,74],[51,67,54,74],[35,10,38,18],[39,10,42,18],[27,10,30,18],[31,49,34,66],[7,10,10,18],[35,67,38,74],[39,67,42,74],[35,1,38,9],[39,1,42,9],[0,1,2,74],[4,1,5,74],[7,67,10,74],[11,67,14,74],[15,67,18,74],[19,67,22,74],[23,67,26,74],[27,67,30,74],[31,67,34,74],[23,1,26,9],[27,1,30,9],[31,1,34,9],[23,10,26,18],[11,10,14,18],[15,10,18,18],[7,1,10,9],[11,1,14,9],[19,10,22,18],[31,10,34,18]]}
[null,"RISORSE UMANE UTILIZZATE PER LA REALIZZAZIONE DEL PROGETTO DI ATTIVITA' FORMATIVE "]
[]
[]
[]
[null,"PERSONALE DIPENDENTE (COMPRESI I COLLABORATORI)"]
[]
[]
[null,"NOME E COGNOME",null,null,null,null,null,null,null,null,"Funzione",null,null,null,null,null,null,null,null,"Descrizione della qualifica del personale impiegato",null,null,null,null,null,null,null,null,null,null,null,null,null,null,"Disciplina oggetto di insegnamento all'interno dell'attività di progetto (solo con riferimento ai docenti)",null,null,null,null,null,null,null,null,null,null,null,null,null,null,"Esperienze specifiche maturate nell'insegnamento della materia oggetto dell'attività formativa",null,null,null,null,null,null,null,null,null,null,null,null,null,null,null,null,null,"N. di corsi oggetto delle docenze"]
[]
[]
[]
[]
[]
[]
[]
[]
[]
[]
[]
[]
[]
[]
[]
[]
[]
[]
[]
[]
[]
[]
[]
[]
[]
[]
[]
[]
[]
[]
[]
[]
[]
[]
[]
[]
[null,"CONSULENTI SPECIALISTICI"]
[]
[]
[null,"NOME E COGNOME",null,null,null,null,null,null,null,null,"Funzione",null,null,null,null,null,null,null,null,"Descrizione della qualifica del personale impiegato",null,null,null,null,null,null,null,null,null,null,null,null,null,null,"Disciplina oggetto di insegnamento all'interno dell'attività di progetto (solo con riferimento ai docenti)",null,null,null,null,null,null,null,null,null,null,null,null,null,null,"Esperienze specifiche maturate nell'insegnamento della materia oggetto dell'attività formativa",null,null,null,null,null,null,null,null,null,null,null,null,null,null,null,null,null,"N. di corsi oggetto delle docenze"]
[]
[]
[]
[]
[]
[]
[]
[]
[]
[]
[]
[]
[]
[]
[]
[]
[]
[]
[]
[]
[]
[]
[]
[]
[]
[]
[]
[]
[]
[]
[]
[]
[]
[]
[]
[null,"(esperti provenienti dal mondo delle professioni, docenti provenieinti dal settore dell'istruzione, della formazione, ecc)"]

{"sheet":"QUALIFICA E COMPETENZA R. U.","index":6,"n_rows":116,"n_cols":67,"rows_kept":116,"cut":false,"hidden":false,"merged":[[111,1,114,20],[99,26,100,61],[101,26,106,61],[107,26,112,61],[107,62,112,65],[107,66,112,74],[75,1,78,9],[75,10,78,22],[75,48,78,52],[75,53,78,74],[91,10,94,22],[91,48,94,52],[91,53,94,74],[79,1,82,9],[79,10,82,22],[79,48,82,52],[79,53,82,74],[83,1,86,9],[83,10,86,22],[83,48,86,52],[83,53,86,74],[87,23,90,42],[91,23,94,42],[75,43,78,47],[79,43,82,47],[83,43,86,47],[87,43,90,47],[91,43,94,47],[75,23,78,42],[79,23,82,42],[63,1,66,9],[63,10,66,22],[63,48,66,52],[63,53,66,74],[67,1,70,9],[67,10,70,22],[67,48,70,52],[67,53,70,74],[71,1,74,9],[71,10,74,22],[71,48,74,52],[71,53,74,74],[63,43,66,47],[67,43,70,47],[71,43,74,47],[63,23,66,42],[67,23,70,42],[71,23,74,42],[50,1,51,74],[53,1,62,9],[53,10,62,22],[53,48,55,74],[56,48,62,52],[56,53,62,74],[41,1,44,9],[41,10,44,22],[41,48,44,52],[41,53,44,74],[45,1,48,9],[45,10,48,22],[45,48,48,52],[45,53,48,74],[41,23,44,42],[45,23,48,42],[41,43,44,47],[45,43,48,47],[53,43,62,47],[53,23,62,42],[33,1,36,9],[33,10,36,22],[33,48,36,52],[33,53,36,74],[29,23,32,42],[33,23,36,42],[29,43,32,47],[33,43,36,47],[37,1,40,9],[37,10,40,22],[37,48,40,52],[37,53,40,74],[37,23,40,42],[37,43,40,47],[25,53,28,74],[21,23,24,42],[25,23,28,42],[21,43,24,47],[25,43,28,47],[29,1,32,9],[29,10,32,22],[29,48,32,52],[29,53,32,74],[21,1,24,9],[21,10,24,22],[21,48,24,52],[21,53,24,74],[25,1,28,9],[25,10,28,22],[25,48,28,52],[0,1,2,74],[4,1,5,74],[7,1,16,9],[7,10,16,22],[7,48,9,74],[10,48,16,52],[10,53,16,74],[17,1,20,9],[17,10,20,22],[17,48,20,52],[17,53,20,74],[7,23,16,42],[7,43,16,47],[17,23,20,42],[17,43,20,47],[115,1,115,74],[83,23,86,42],[99,62,100,65],[101,62,106,65],[99,66,100,74],[101,66,106,74],[103,1,104,20],[103,21,104,25],[105,1,106,20],[105,21,106,25],[107,21,110,25],[111,21,114,25],[96,1,97,74],[99,21,102,25],[87,1,90,9],[87,10,90,22],[87,48,90,52],[87,53,90,74],[91,1,94,9],[113,26,114,61],[113,62,114,65],[113,66,114,74],[99,1,102,20],[107,1,110,20]]}
[null,"DESCRIZIONE DELLE QUALIFICHE E COMPETENZE DELLE RISORSE UMANE IMPIEGATE"]
[]
[]
[]
[null,"PERSONALE DIPENDENTE (COMPRESI I COLLABORATORI)"]
[]
[]
[null,"NOME E COGNOME",null,null,null,null,null,null,null,null,"RUOLO SVOLTO NEL PROGETTO",null,null,null,null,null,null,null,null,null,null,null,null,"QUALIFICA DELLE RISORSE UMANE IMPIEGATE",null,null,null,null,null,null,null,null,null,null,null,null,null,null,null,null,null,null,null,"Altamente qualificato*",null,null,null,null,"Competenze delle risorse umane impiegate"]
[]
[]
[null,null,null,null,null,null,null,null,null,null,null,null,null,null,null,null,null,null,null,null,null,null,null,null,null,null,null,null,null,null,null,null,null,null,null,null,null,null,null,null,null,null,null,null,null,null,null,null,"NUMERO DI PARTECIPAZIONI A PROGETTI",null,null,null,null,"DESCRIZIONE"]
[]
[]
[]
[]
[]
[]
[null,{"$f":"IF('RISORSE UMANE'!B12<>\"\",'RISORSE UMANE'!B12,\"\")","v":""}]
[]
[]
[]
[null,{"$f":"IF('RISORSE UMANE'!B16<>\"\",'RISORSE UMANE'!B16,\"\")","v":""}]
[]
[]
[]
[null,{"$f":"IF('RISORSE UMANE'!B20<>\"\",'RISORSE UMANE'!B20,\"\")","v":""}]
[]
[]
[]
[null,{"$f":"IF('RISORSE UMANE'!B24<>\"\",'RISORSE UMANE'!B24,\"\")","v":""}]
[]
[]
[]
[null,{"$f":"IF('RISORSE UMANE'!B28<>\"\",'RISORSE UMANE'!B28,\"\")","v":""}]
[]
[]
[]
[null,{"$f":"IF('RISORSE UMANE'!B32<>\"\",'RISORSE UMANE'!B32,\"\")","v":""}]
[]
[]
[]
[null,{"$f":"IF('RISORSE UMANE'!B36<>\"\",'RISORSE UMANE'!B36,\"\")","v":""}]
[]
[]
[]
[null,{"$f":"IF('RISORSE UMANE'!B40<>\"\",'RISORSE UMANE'!B40,\"\")","v":""}]
[]
[]
[]
[]
[null,"CONSULENTI SPECIALISTICI"]
[]
[]
[null,"NOME E COGNOME",null,null,null,null,null,null,null,null,"FUNZIONE",null,null,null,null,null,null,null,null,null,null,null,null,"QUALIFICA DELLE RISORSE UMANE IMPIEGATE",null,null,null,null,null,null,null,null,null,null,null,null,null,null,null,null,null,null,null,"Altamente qualificato*",null,null,null,null,"Competenze delle risorse umane impiegate"]
[]
[]
[null,null,null,null,null,null,null,null,null,null,null,null,null,null,null,null,null,null,null,null,null,null,null,null,null,null,null,null,null,null,null,null,null,null,null,null,null,null,null,null,null,null,null,null,null,null,null,null,"NUMERO DI PARTECIPAZIONI A PROGETTI",null,null,null,null,"DESCRIZIONE"]
[]
[]
[]
[]
[]
[]
[null,{"$f":"IF('RISORSE UMANE'!B52<>\"\",'RISORSE UMANE'!B52,\"\")","v":""}]
[]
[]
[]
[null,{"$f":"IF('RISORSE UMANE'!B56<>\"\",'RISORSE UMANE'!B56,\"\")","v":""}]
[]
[]
[]
[null,{"$f":"IF('RISORSE UMANE'!B60<>\"\",'RISORSE UMANE'!B60,\"\")","v":""}]
[]
[]
[]
[null,{"$f":"IF('RISORSE UMANE'!B64<>\"\",'RISORSE UMANE'!B64,\"\")","v":""}]
[]
[]
[]
[null,{"$f":"IF('RISORSE UMANE'!B68<>\"\",'RISORSE UMANE'!B68,\"\")","v":""}]
[]
[]
[]
[null,{"$f":"IF('RISORSE UMANE'!B72<>\"\",'RISORSE UMANE'!B72,\"\")","v":""}]
[]
[]
[]
[null,{"$f":"IF('RISORSE UMANE'!B76<>\"\",'RISORSE UMANE'!B76,\"\")","v":""}]
[]
[]
[]
[null,{"$f":"IF('RISORSE UMANE'!B80<>\"\",'RISORSE UMANE'!B80,\"\")","v":""}]
[]
[]
[]
[]
[null,"ADEGUATEZZA E COERENZA QUANTI-QUALITATIVA DELLE RISORSE IMPIEGATE (PRINCIPIO 2)"]
[]
[]
[null,"TOTALE RISORSE UMANE IMPIEGATE",null,null,null,null,null,null,null,null,null,null,null,null,null,null,null,null,null,null,null,{"$f":"COUNTA('RISORSE UMANE'!B12:B40,'RISORSE UMANE'!B52:B80)","v":0},null,null,null,null,"Descrizione del principio di valutazione",null,null,null,null,null,null,null,null,null,null,null,null,null,null,null,null,null,null,null,null,null,null,null,null,null,null,null,null,null,null,null,null,null,null,null,"%",null,null,null,"PUNTEGGIO"]
[]
[null,null,null,null,null,null,null,null,null,null,null,null,null,null,null,null,null,null,null,null,null,null,null,null,null,null,"Qualifica dei docenti nel settore/materia oggetto del corso\nL’adeguatezza del personale impiegato nell’attività formativa sarà valutata sulla base dei curricula. La priorità verrà assegnata in relazione all’incidenza % dei docenti altamente qualificati* rispetto al totale del personale docente",null,null,null,null,null,null,null,null,null,null,null,null,null,null,null,null,null,null,null,null,null,null,null,null,null,null,null,null,null,null,null,null,null,null,null,{"$f":"V106/V104*100","v":{"$error":"#DIV/0!"}},null,null,null,{"$f":"IF(BK102>=70,15,IF(AND(BK102>=50,BK102<70),10,IF(AND(BK102>=30,BK102<50),5,0)))","v":{"$error":"#DIV/0!"}}]
[]
[null,"Personale docente  ",null,null,null,null,null,null,null,null,null,null,null,null,null,null,null,null,null,null,null,{"$f":"(COUNTIFS(X18:X92,\"Personale Docente\"))","v":0}]
[]
[null,"di cui altamente qualificato",null,null,null,null,null,null,null,null,null,null,null,null,null,null,null,null,null,null,null,{"$f":"COUNTIF(AR18:AR92,\"SI\")","v":0}]
[]
[null,"Personale docente con comprovata competenza e professionalità (almeno 5 corsi)",null,null,null,null,null,null,null,null,null,null,null,null,null,null,null,null,null,null,null,{"$f":"COUNTIFS(X18:X92,\"Personale docente\",AW18:AW92,\">=5\")","v":0},null,null,null,null,"Competenza dei docenti nel settore/materia oggetto del corso\nLa competenza del personale docente impiegato nell’attività formativa verrà valutata sulla base di una documentata esperienza nell’insegnamento della materia oggetto del corso (almeno n. 5 corsi) La priorità verrà assegnata in relazione all’incidenza % di tali docenti, rispetto al totale dei docenti impiegati nel corso, secondo le classi di seguito indicate",null,null,null,null,null,null,null,null,null,null,null,null,null,null,null,null,null,null,null,null,null,null,null,null,null,null,null,null,null,null,null,null,null,null,null,{"$f":"V108/V104*100","v":{"$error":"#DIV/0!"}},null,null,null,{"$f":"IF(BK108>=70,15,IF(AND(BK108>=50,BK108<70),10,IF(AND(BK108>=30,BK108<50),5,IF(BK108<=15,\"NON AMMISSIBILE\",0))))","v":{"$error":"#DIV/0!"}}]
[]
[]
[]
[null,"Altro personale impiegato nel progetto",null,null,null,null,null,null,null,null,null,null,null,null,null,null,null,null,null,null,null,{"$f":"(COUNTIFS(X18:X92,\"Altro personale impiegato per il progetto\"))","v":0}]
[]
[null,null,null,null,null,null,null,null,null,null,null,null,null,null,null,null,null,null,null,null,null,null,null,null,null,null,{"$f":"IF(BK108<10,\"NON AMMISSIBILE\",\"\")","v":{"$error":"#DIV/0!"}},null,null,null,null,null,null,null,null,null,null,null,null,null,null,null,null,null,null,null,null,null,null,null,null,null,null,null,null,null,null,null,null,null,null,null,null,null,null,null,{"$f":"BO102+BO108","v":{"$error":"#DIV/0!"}}]
[]
[null,"*Per docenti altamente qualificati si intendono docenti in ruolo del sistema universitario/scolastico, personale inquadrato ai sensi del CCNL da almeno 2 anni come dirigeente di ricerca, ricercatore, tecnologo, docenti in possesso di qualifica professionale riconosciuta dal sistema regionale per il settore/tematica trattata."]

{"sheet":"SCHEDA ATTIVITA DIDATTICA","index":7,"n_rows":82,"n_cols":73,"rows_kept":82,"cut":false,"hidden":false,"merged":[[45,1,46,74],[48,1,52,9],[48,10,52,34],[48,35,49,68],[48,69,52,71],[48,72,52,74],[50,35,52,39],[50,40,52,44],[50,45,52,49],[50,50,52,54],[7,69,11,71],[7,72,11,74],[12,10,15,34],[16,10,19,34],[20,10,23,34],[24,10,27,34],[4,1,5,74],[12,1,15,9],[16,1,19,9],[20,1,23,9],[24,1,27,9],[12,35,15,39],[12,40,15,44],[12,45,15,49],[12,50,15,54],[12,55,15,59],[12,60,15,64],[12,65,15,68],[16,35,19,39],[16,40,19,44],[16,45,19,49],[16,50,19,54],[16,55,19,59],[20,55,23,59],[32,1,35,9],[36,1,39,9],[40,1,43,9],[7,35,8,68],[7,1,11,9],[7,10,11,34],[9,35,11,39],[9,40,11,44],[9,45,11,49],[9,50,11,54],[9,55,11,59],[9,60,11,64],[9,65,11,68],[28,1,31,9],[28,10,31,34],[32,10,35,34],[36,10,39,34],[40,10,43,34],[16,60,19,64],[16,65,19,68],[20,35,23,39],[20,40,23,44],[20,45,23,49],[20,50,23,54],[20,60,23,64],[20,65,23,68],[24,35,27,39],[24,40,27,44],[24,45,27,49],[24,50,27,54],[24,55,27,59],[24,60,27,64],[24,65,27,68],[28,35,31,39],[28,40,31,44],[28,45,31,49],[28,50,31,54],[28,55,31,59],[28,60,31,64],[28,65,31,68],[32,40,35,44],[32,45,35,49],[32,50,35,54],[32,55,35,59],[32,60,35,64],[32,65,35,68],[12,69,15,71],[12,72,15,74],[16,69,19,71],[16,72,19,74],[20,69,23,71],[20,72,23,74],[24,69,27,71],[24,72,27,74],[28,69,31,71],[28,72,31,74],[32,69,35,71],[32,72,35,74],[36,69,39,71],[36,72,39,74],[40,69,43,71],[40,72,43,74],[32,35,35,39],[50,55,52,59],[50,60,52,64],[50,65,52,68],[36,35,39,39],[36,40,39,44],[36,45,39,49],[36,50,39,54],[36,55,39,59],[36,60,39,64],[36,65,39,68],[40,35,43,39],[40,40,43,44],[40,45,43,49],[40,50,43,54],[40,55,43,59],[40,60,43,64],[40,65,43,68],[53,69,56,71],[53,72,56,74],[57,1,60,9],[57,10,60,34],[57,35,60,39],[57,40,60,44],[57,45,60,49],[57,50,60,54],[57,55,60,59],[57,60,60,64],[57,65,60,68],[57,69,60,71],[57,72,60,74],[53,1,56,9],[53,10,56,34],[53,35,56,39],[53,40,56,44],[53,45,56,49],[53,50,56,54],[53,55,56,59],[53,60,56,64],[53,65,56,68],[61,69,64,71],[61,72,64,74],[65,1,68,9],[65,10,68,34],[65,35,68,39],[65,40,68,44],[65,45,68,49],[65,50,68,54],[65,55,68,59],[65,60,68,64],[65,65,68,68],[65,69,68,71],[65,72,68,74],[61,1,64,9],[61,10,64,34],[61,35,64,39],[61,40,64,44],[61,45,64,49],[61,50,64,54],[61,55,64,59],[61,60,64,64],[61,65,64,68],[69,72,72,74],[73,1,76,9],[73,10,76,34],[73,35,76,39],[73,40,76,44],[73,45,76,49],[73,50,76,54],[73,55,76,59],[73,60,76,64],[73,65,76,68],[73,69,76,71],[73,72,76,74],[69,1,72,9],[69,10,72,34],[69,35,72,39],[69,40,72,44],[69,45,72,49],[69,50,72,54],[69,55,72,59],[69,60,72,64],[69,65,72,68],[0,1,2,74],[77,69,80,71],[77,72,80,74],[81,1,84,9],[81,10,84,34],[81,35,84,39],[81,40,84,44],[81,45,84,49],[81,50,84,54],[81,55,84,59],[81,60,84,64],[81,65,84,68],[81,69,84,71],[81,72,84,74],[77,1,80,9],[77,10,80,34],[77,35,80,39],[77,40,80,44],[77,45,80,49],[77,50,80,54],[77,55,80,59],[77,60,80,64],[77,65,80,68],[69,69,72,71]]}
[null,"SCHEDA DI ATTIVITA' DIDATTICA"]
[]
[]
[]
[null,"PERSONALE DIPENDENTE (COMPRESI I COLLABORATORI)"]
[]
[]
[null,"Nome e Cognome del Docente",null,null,null,null,null,null,null,null,"Contenuto didattico (moduli formativi trattati)",null,null,null,null,null,null,null,null,null,null,null,null,null,null,null,null,null,null,null,null,null,null,null,null,"Modalità di svolgimento e durata (ore)",null,null,null,null,null,null,null,null,null,null,null,null,null,null,null,null,null,null,null,null,null,null,null,null,null,null,null,null,null,null,null,null,null,"N. ore totali",null,null,"N. giorni totali"]
[]
[null,null,null,null,null,null,null,null,null,null,null,null,null,null,null,null,null,null,null,null,null,null,null,null,null,null,null,null,null,null,null,null,null,null,null,"Aula",null,null,null,null,"Seminario",null,null,null,null,"Stage",null,null,null,null,"Visita dimostr.",null,null,null,null,"FAD",null,null,null,null,"Trasf. Individuale",null,null,null,null,"Coach."]
[]
[]
[null,{"$f":"IF('RISORSE UMANE'!B12=\"\",\"\",IF('RISORSE UMANE'!K12=\"Docente\",'RISORSE UMANE'!B12,\"\"))","v":""},null,null,null,null,null,null,null,null,null,null,null,null,null,null,null,null,null,null,null,null,null,null,null,null,null,null,null,null,null,null,null,null,null,null,null,null,null,null,null,null,null,null,null,null,null,null,null,null,null,null,null,null,null,null,null,null,null,null,null,null,null,null,null,null,null,null,null,{"$f":"AJ13+AO13+AT13+AY13+BD13+BI13+BN13","v":0}]
[]
[]
[]
[null,{"$f":"IF('RISORSE UMANE'!B16=\"\",\"\",IF('RISORSE UMANE'!K16=\"Docente\",'RISORSE UMANE'!B16,\"\"))","v":""},null,null,null,null,null,null,null,null,null,null,null,null,null,null,null,null,null,null,null,null,null,null,null,null,null,null,null,null,null,null,null,null,null,null,null,null,null,null,null,null,null,null,null,null,null,null,null,null,null,null,null,null,null,null,null,null,null,null,null,null,null,null,null,null,null,null,null,{"$f":"AJ17+AO17+AT17+AY17+BD17+BI17+BN17","v":0}]
[]
[]
[]
[null,{"$f":"IF('RISORSE UMANE'!B20=\"\",\"\",IF('RISORSE UMANE'!K20=\"Docente\",'RISORSE UMANE'!B20,\"\"))","v":""},null,null,null,null,null,null,null,null,null,null,null,null,null,null,null,null,null,null,null,null,null,null,null,null,null,null,null,null,null,null,null,null,null,null,null,null,null,null,null,null,null,null,null,null,null,null,null,null,null,null,null,null,null,null,null,null,null,null,null,null,null,null,null,null,null,null,null,{"$f":"AJ21+AO21+AT21+AY21+BD21+BI21+BN21","v":0}]
[]
[]
[]
[null,{"$f":"IF('RISORSE UMANE'!B24=\"\",\"\",IF('RISORSE UMANE'!K24=\"Docente\",'RISORSE UMANE'!B24,\"\"))","v":""},null,null,null,null,null,null,null,null,null,null,null,null,null,null,null,null,null,null,null,null,null,null,null,null,null,null,null,null,null,null,null,null,null,null,null,null,null,null,null,null,null,null,null,null,null,null,null,null,null,null,null,null,null,null,null,null,null,null,null,null,null,null,null,null,null,null,null,{"$f":"AJ25+AO25+AT25+AY25+BD25+BI25+BN25","v":0}]
[]
[]
[]
[null,{"$f":"IF('RISORSE UMANE'!B28=\"\",\"\",IF('RISORSE UMANE'!K28=\"Docente\",'RISORSE UMANE'!B28,\"\"))","v":""},null,null,null,null,null,null,null,null,null,null,null,null,null,null,null,null,null,null,null,null,null,null,null,null,null,null,null,null,null,null,null,null,null,null,null,null,null,null,null,null,null,null,null,null,null,null,null,null,null,null,null,null,null,null,null,null,null,null,null,null,null,null,null,null,null,null,null,{"$f":"AJ29+AO29+AT29+AY29+BD29+BI29+BN29","v":0}]
[]
[]
[]
[null,{"$f":"IF('RISORSE UMANE'!B32=\"\",\"\",IF('RISORSE UMANE'!K32=\"Docente\",'RISORSE UMANE'!B32,\"\"))","v":""},null,null,null,null,null,null,null,null,null,null,null,null,null,null,null,null,null,null,null,null,null,null,null,null,null,null,null,null,null,null,null,null,null,null,null,null,null,null,null,null,null,null,null,null,null,null,null,null,null,null,null,null,null,null,null,null,null,null,null,null,null,null,null,null,null,null,null,{"$f":"AJ33+AO33+AT33+AY33+BD33+BI33+BN33","v":0}]
[]
[]
[]
[null,{"$f":"IF('RISORSE UMANE'!B36=\"\",\"\",IF('RISORSE UMANE'!K36=\"Docente\",'RISORSE UMANE'!B36,\"\"))","v":""},null,null,null,null,null,null,null,null,null,null,null,null,null,null,null,null,null,null,null,null,null,null,null,null,null,null,null,null,null,null,null,null,null,null,null,null,null,null,null,null,null,null,null,null,null,null,null,null,null,null,null,null,null,null,null,null,null,null,null,null,null,null,null,null,null,null,null,{"$f":"AJ37+AO37+AT37+AY37+BD37+BI37+BN37","v":0}]
[]
[]
[]
[null,{"$f":"IF('RISORSE UMANE'!B40=\"\",\"\",IF('RISORSE UMANE'!K40=\"Docente\",'RISORSE UMANE'!B40,\"\"))","v":""},null,null,null,null,null,null,null,null,null,null,null,null,null,null,null,null,null,null,null,null,null,null,null,null,null,null,null,null,null,null,null,null,null,null,null,null,null,null,null,null,null,null,null,null,null,null,null,null,null,null,null,null,null,null,null,null,null,null,null,null,null,null,null,null,null,null,null,{"$f":"AJ41+AO41+AT41+AY41+BD41+BI41+BN41","v":0}]
[]
[]
[]
[]
[null,"CONSULENTI SPECIALISTICI"]
[]
[]
[null,"Nome e Cognome del Docente",null,null,null,null,null,null,null,null,"Contenuto didattico (moduli formativi trattati)",null,null,null,null,null,null,null,null,null,null,null,null,null,null,null,null,null,null,null,null,null,null,null,null,"Modalità di svolgimento e durata (ore)",null,null,null,null,null,null,null,null,null,null,null,null,null,null,null,null,null,null,null,null,null,null,null,null,null,null,null,null,null,null,null,null,null,"N. ore totali",null,null,"N. giorni totali"]
[]
[null,null,null,null,null,null,null,null,null,null,null,null,null,null,null,null,null,null,null,null,null,null,null,null,null,null,null,null,null,null,null,null,null,null,null,"Aula",null,null,null,null,"Seminario",null,null,null,null,"Stage",null,null,null,null,"Visita dimostr.",null,null,null,null,"FAD",null,null,null,null,"Trasf. Individuale",null,null,null,null,"Coach."]
[]
[]
[null,{"$f":"IF('RISORSE UMANE'!B52=\"\",\"\",IF('RISORSE UMANE'!K52=\"Docente\",'RISORSE UMANE'!B52,\"\"))","v":""},null,null,null,null,null,null,null,null,null,null,null,null,null,null,null,null,null,null,null,null,null,null,null,null,null,null,null,null,null,null,null,null,null,null,null,null,null,null,null,null,null,null,null,null,null,null,null,null,null,null,null,null,null,null,null,null,null,null,null,null,null,null,null,null,null,null,null,{"$f":"AJ54+AO54+AT54+AY54+BD54+BI54+BN54","v":0}]
[]
[]
[]
[null,{"$f":"IF('RISORSE UMANE'!B56=\"\",\"\",IF('RISORSE UMANE'!K56=\"Docente\",'RISORSE UMANE'!B56,\"\"))","v":""},null,null,null,null,null,null,null,null,null,null,null,null,null,null,null,null,null,null,null,null,null,null,null,null,null,null,null,null,null,null,null,null,null,null,null,null,null,null,null,null,null,null,null,null,null,null,null,null,null,null,null,null,null,null,null,null,null,null,null,null,null,null,null,null,null,null,null,{"$f":"AJ58+AO58+AT58+AY58+BD58+BI58+BN58","v":0}]
[]
[]
[]
[null,{"$f":"IF('RISORSE UMANE'!B60=\"\",\"\",IF('RISORSE UMANE'!K60=\"Docente\",'RISORSE UMANE'!B60,\"\"))","v":""},null,null,null,null,null,null,null,null,null,null,null,null,null,null,null,null,null,null,null,null,null,null,null,null,null,null,null,null,null,null,null,null,null,null,null,null,null,null,null,null,null,null,null,null,null,null,null,null,null,null,null,null,null,null,null,null,null,null,null,null,null,null,null,null,null,null,null,{"$f":"AJ62+AO62+AT62+AY62+BD62+BI62+BN62","v":0}]
[]
[]
[]
[null,{"$f":"IF('RISORSE UMANE'!B64=\"\",\"\",IF('RISORSE UMANE'!K64=\"Docente\",'RISORSE UMANE'!B64,\"\"))","v":""},null,null,null,null,null,null,null,null,null,null,null,null,null,null,null,null,null,null,null,null,null,null,null,null,null,null,null,null,null,null,null,null,null,null,null,null,null,null,null,null,null,null,null,null,null,null,null,null,null,null,null,null,null,null,null,null,null,null,null,null,null,null,null,null,null,null,null,{"$f":"AJ66+AO66+AT66+AY66+BD66+BI66+BN66","v":0}]
[]
[]
[]
[null,{"$f":"IF('RISORSE UMANE'!B68=\"\",\"\",IF('RISORSE UMANE'!K68=\"Docente\",'RISORSE UMANE'!B68,\"\"))","v":""},null,null,null,null,null,null,null,null,null,null,null,null,null,null,null,null,null,null,null,null,null,null,null,null,null,null,null,null,null,null,null,null,null,null,null,null,null,null,null,null,null,null,null,null,null,null,null,null,null,null,null,null,null,null,null,null,null,null,null,null,null,null,null,null,null,null,null,{"$f":"AJ70+AO70+AT70+AY70+BD70+BI70+BN70","v":0}]
[]
[]
[]
[null,{"$f":"IF('RISORSE UMANE'!B72=\"\",\"\",IF('RISORSE UMANE'!K72=\"Docente\",'RISORSE UMANE'!B72,\"\"))","v":""},null,null,null,null,null,null,null,null,null,null,null,null,null,null,null,null,null,null,null,null,null,null,null,null,null,null,null,null,null,null,null,null,null,null,null,null,null,null,null,null,null,null,null,null,null,null,null,null,null,null,null,null,null,null,null,null,null,null,null,null,null,null,null,null,null,null,null,{"$f":"AJ74+AO74+AT74+AY74+BD74+BI74+BN74","v":0}]
[]
[]
[]
[null,{"$f":"IF('RISORSE UMANE'!B76=\"\",\"\",IF('RISORSE UMANE'!K76=\"Docente\",'RISORSE UMANE'!B76,\"\"))","v":""},null,null,null,null,null,null,null,null,null,null,null,null,null,null,null,null,null,null,null,null,null,null,null,null,null,null,null,null,null,null,null,null,null,null,null,null,null,null,null,null,null,null,null,null,null,null,null,null,null,null,null,null,null,null,null,null,null,null,null,null,null,null,null,null,null,null,null,{"$f":"AJ78+AO78+AT78+AY78+BD78+BI78+BN78","v":0}]
[]
[]
[]
[null,{"$f":"IF('RISORSE UMANE'!B80=\"\",\"\",IF('RISORSE UMANE'!K80=\"Docente\",'RISORSE UMANE'!B80,\"\"))","v":""},null,null,null,null,null,null,null,null,null,null,null,null,null,null,null,null,null,null,null,null,null,null,null,null,null,null,null,null,null,null,null,null,null,null,null,null,null,null,null,null,null,null,null,null,null,null,null,null,null,null,null,null,null,null,null,null,null,null,null,null,null,null,null,null,null,null,null,{"$f":"AJ82+AO82+AT82+AY82+BD82+BI82+BN82","v":0}]

{"sheet":"COSTO DELLE RISORSE UMANE","index":8,"n_rows":79,"n_cols":43,"rows_kept":79,"cut":false,"hidden":false,"merged":[[10,1,13,7],[10,8,13,18],[10,19,13,25],[10,26,13,34],[10,35,13,40],[10,41,13,48],[0,1,2,48],[4,1,5,48],[7,1,9,7],[7,8,9,18],[7,19,9,25],[7,26,9,34],[7,35,9,40],[7,41,9,48],[18,1,21,7],[18,8,21,18],[18,19,21,25],[18,26,21,34],[18,35,21,40],[18,41,21,48],[14,1,17,7],[14,8,17,18],[14,19,17,25],[14,26,17,34],[14,35,17,40],[14,41,17,48],[26,1,29,7],[26,8,29,18],[26,19,29,25],[26,26,29,34],[26,35,29,40],[26,41,29,48],[22,1,25,7],[22,8,25,18],[22,19,25,25],[22,26,25,34],[22,35,25,40],[22,41,25,48],[34,1,37,7],[34,8,37,18],[34,19,37,25],[34,26,37,34],[34,35,37,40],[34,41,37,48],[30,1,33,7],[30,8,33,18],[30,19,33,25],[30,26,33,34],[30,35,33,40],[30,41,33,48],[43,1,44,48],[46,1,49,7],[46,8,49,18],[46,19,49,24],[46,25,49,30],[46,31,49,35],[46,36,49,41],[46,42,49,48],[38,1,41,7],[38,8,41,18],[38,19,41,25],[38,26,41,34],[38,35,41,40],[38,41,41,48],[50,42,53,48],[54,1,57,7],[54,8,57,18],[54,19,57,24],[54,25,57,30],[54,31,57,35],[54,36,57,41],[54,42,57,48],[50,1,53,7],[50,8,53,18],[50,19,53,24],[50,25,53,30],[50,31,53,35],[50,36,53,41],[58,42,61,48],[62,1,65,7],[62,8,65,18],[62,19,65,24],[62,25,65,30],[62,31,65,35],[62,36,65,41],[62,42,65,48],[58,1,61,7],[58,8,61,18],[58,19,61,24],[58,25,61,30],[58,31,61,35],[58,36,61,41],[66,42,69,48],[70,1,73,7],[70,8,73,18],[70,19,73,24],[70,25,73,30],[70,31,73,35],[70,36,73,41],[70,42,73,48],[66,1,69,7],[66,8,69,18],[66,19,69,24],[66,25,69,30],[66,31,69,35],[66,36,69,41],[74,42,77,48],[78,1,81,7],[78,8,81,18],[78,19,81,24],[78,25,81,30],[78,31,81,35],[78,36,81,41],[78,42,81,48],[74,1,77,7],[74,8,77,18],[74,19,77,24],[74,25,77,30],[74,31,77,35],[74,36,77,41]]}
[null,"SCHEDA DELLA PREVISIONE FINANZIARIA \n(da compilare esclusivamente nel caso di attività di trasferimento individuale o di coaching)"]
[]
[]
[]
[null,"RISORSE UMANE - PERSONALE DIPENDENTE"]
[]
[]
[null,"NOME E COGNOME",null,null,null,null,null,null,"RUOLO SVOLTO NEL PROGETTO",null,null,null,null,null,null,null,null,null,null,"COSTO EFFETTIVO ANNUO LORDO",null,null,null,null,null,null,"MONTE ORE ANNUO LORDO",null,null,null,null,null,null,null,null,"N. ORE DEDICATE AL PROGETTO",null,null,null,null,null,"IMPORTO PREVISTO"]
[]
[]
[null,{"$f":"IF('RISORSE UMANE'!B12<>\"\",'RISORSE UMANE'!B12,\"\")","v":""},null,null,null,null,null,null,{"$f":"IF('QUALIFICA E COMPETENZA R. U.'!K18<>\"\",'QUALIFICA E COMPETENZA R. U.'!K18,\"\")","v":""},null,null,null,null,null,null,null,null,null,null,null,null,null,null,null,null,null,null,null,null,null,null,null,null,null,null,null,null,null,null,null,null,{"$f":"IF(T11>0,T11/AA11*AJ11,0)","v":0}]
[]
[]
[]
[null,{"$f":"IF('RISORSE UMANE'!B16<>\"\",'RISORSE UMANE'!B16,\"\")","v":""},null,null,null,null,null,null,{"$f":"IF('QUALIFICA E COMPETENZA R. U.'!K22<>\"\",'QUALIFICA E COMPETENZA R. U.'!K22,\"\")","v":""},null,null,null,null,null,null,null,null,null,null,null,null,null,null,null,null,null,null,null,null,null,null,null,null,null,null,null,null,null,null,null,null,{"$f":"IF(T15>0,T15/AA15*AJ15,0)","v":0}]
[]
[]
[]
[null,{"$f":"IF('RISORSE UMANE'!B20<>\"\",'RISORSE UMANE'!B20,\"\")","v":""},null,null,null,null,null,null,{"$f":"IF('QUALIFICA E COMPETENZA R. U.'!K26<>\"\",'QUALIFICA E COMPETENZA R. U.'!K26,\"\")","v":""},null,null,null,null,null,null,null,null,null,null,null,null,null,null,null,null,null,null,null,null,null,null,null,null,null,null,null,null,null,null,null,null,{"$f":"IF(T19>0,T19/AA19*AJ19,0)","v":0}]
[]
[]
[]
[null,{"$f":"IF('RISORSE UMANE'!B24<>\"\",'RISORSE UMANE'!B24,\"\")","v":""},null,null,null,null,null,null,{"$f":"IF('QUALIFICA E COMPETENZA R. U.'!K30<>\"\",'QUALIFICA E COMPETENZA R. U.'!K30,\"\")","v":""},null,null,null,null,null,null,null,null,null,null,null,null,null,null,null,null,null,null,null,null,null,null,null,null,null,null,null,null,null,null,null,null,{"$f":"IF(T23>0,T23/AA23*AJ23,0)","v":0}]
[]
[]
[]
[null,{"$f":"IF('RISORSE UMANE'!B28<>\"\",'RISORSE UMANE'!B28,\"\")","v":""},null,null,null,null,null,null,{"$f":"IF('QUALIFICA E COMPETENZA R. U.'!K34<>\"\",'QUALIFICA E COMPETENZA R. U.'!K34,\"\")","v":""},null,null,null,null,null,null,null,null,null,null,null,null,null,null,null,null,null,null,null,null,null,null,null,null,null,null,null,null,null,null,null,null,{"$f":"IF(T27>0,T27/AA27*AJ27,0)","v":0}]
[]
[]
[]
[null,{"$f":"IF('RISORSE UMANE'!B32<>\"\",'RISORSE UMANE'!B32,\"\")","v":""},null,null,null,null,null,null,{"$f":"IF('QUALIFICA E COMPETENZA R. U.'!K38<>\"\",'QUALIFICA E COMPETENZA R. U.'!K38,\"\")","v":""},null,null,null,null,null,null,null,null,null,null,null,null,null,null,null,null,null,null,null,null,null,null,null,null,null,null,null,null,null,null,null,null,{"$f":"IF(T31>0,T31/AA31*AJ31,0)","v":0}]
[]
[]
[]
[null,{"$f":"IF('RISORSE UMANE'!B36<>\"\",'RISORSE UMANE'!B36,\"\")","v":""},null,null,null,null,null,null,{"$f":"IF('QUALIFICA E COMPETENZA R. U.'!K42<>\"\",'QUALIFICA E COMPETENZA R. U.'!K42,\"\")","v":""},null,null,null,null,null,null,null,null,null,null,null,null,null,null,null,null,null,null,null,null,null,null,null,null,null,null,null,null,null,null,null,null,{"$f":"IF(T35>0,T35/AA35*AJ35,0)","v":0}]
[]
[]
[]
[null,{"$f":"IF('RISORSE UMANE'!B40<>\"\",'RISORSE UMANE'!B40,\"\")","v":""},null,null,null,null,null,null,{"$f":"IF('QUALIFICA E COMPETENZA R. U.'!K46<>\"\",'QUALIFICA E COMPETENZA R. U.'!K46,\"\")","v":""},null,null,null,null,null,null,null,null,null,null,null,null,null,null,null,null,null,null,null,null,null,null,null,null,null,null,null,null,null,null,null,null,{"$f":"IF(T39>0,T39/AA39*AJ39,0)","v":0}]
[]
[]
[]
[]
[null,"RISORSE UMANE - CONSULENTI SPECIALISTICI"]
[]
[]
[null,"NOME E COGNOME",null,null,null,null,null,null,"RUOLO SVOLTO NEL PROGETTO",null,null,null,null,null,null,null,null,null,null,"ESPERIENZA SPECIFICA MATURATA",null,null,null,null,null,"TARIFFA MASSIMA GIORNALIERA",null,null,null,null,null,"N. GIORNI DEDICATI ",null,null,null,null,"IMPORTO MAX AMMISSIBILE",null,null,null,null,null,"IMPORTO PREVISTO"]
[]
[]
[]
[null,{"$f":"IF('RISORSE UMANE'!B52<>\"\",'RISORSE UMANE'!B52,\"\")","v":""},null,null,null,null,null,null,{"$f":"IF('QUALIFICA E COMPETENZA R. U.'!K64<>\"\",'QUALIFICA E COMPETENZA R. U.'!K64,\"\")","v":""},null,null,null,null,null,null,null,null,null,null,null,null,null,null,null,null,{"$f":"IF(T51=\"> 15 ANNI\",\"€ 250\",IF(T51=\"11 - 15 ANNI\",\"€ 200\",IF(T51=\"6 - 10 ANNI\",\"€ 150\",IF(T51=\"0 - 5 ANNI\",\"€ 100\",\"\"))))","v":""},null,null,null,null,null,null,null,null,null,null,{"$f":"IF(AF51>0,Z51*AF51,0)","v":0}]
[]
[]
[]
[null,{"$f":"IF('RISORSE UMANE'!B56<>\"\",'RISORSE UMANE'!B56,\"\")","v":""},null,null,null,null,null,null,{"$f":"IF('QUALIFICA E COMPETENZA R. U.'!K68<>\"\",'QUALIFICA E COMPETENZA R. U.'!K68,\"\")","v":""},null,null,null,null,null,null,null,null,null,null,null,null,null,null,null,null,{"$f":"IF(T55=\"> 15 ANNI\",\"€ 250\",IF(T55=\"11 - 15 ANNI\",\"€ 200\",IF(T55=\"6 - 10 ANNI\",\"€ 150\",IF(T55=\"0 - 5 ANNI\",\"€ 100\",\"\"))))","v":""},null,null,null,null,null,null,null,null,null,null,{"$f":"IF(AF55>0,Z55*AF55,0)","v":0}]
[]
[]
[]
[null,{"$f":"IF('RISORSE UMANE'!B60<>\"\",'RISORSE UMANE'!B60,\"\")","v":""},null,null,null,null,null,null,{"$f":"IF('QUALIFICA E COMPETENZA R. U.'!K72<>\"\",'QUALIFICA E COMPETENZA R. U.'!K72,\"\")","v":""},null,null,null,null,null,null,null,null,null,null,null,null,null,null,null,null,{"$f":"IF(T59=\"> 15 ANNI\",\"€ 250\",IF(T59=\"11 - 15 ANNI\",\"€ 200\",IF(T59=\"6 - 10 ANNI\",\"€ 150\",IF(T59=\"0 - 5 ANNI\",\"€ 100\",\"\"))))","v":""},null,null,null,null,null,null,null,null,null,null,{"$f":"IF(AF59>0,Z59*AF59,0)","v":0}]
[]
[]
[]
[null,{"$f":"IF('RISORSE UMANE'!B64<>\"\",'RISORSE UMANE'!B64,\"\")","v":""},null,null,null,null,null,null,{"$f":"IF('QUALIFICA E COMPETENZA R. U.'!K76<>\"\",'QUALIFICA E COMPETENZA R. U.'!K76,\"\")","v":""},null,null,null,null,null,null,null,null,null,null,null,null,null,null,null,null,{"$f":"IF(T63=\"> 15 ANNI\",\"€ 250\",IF(T63=\"11 - 15 ANNI\",\"€ 200\",IF(T63=\"6 - 10 ANNI\",\"€ 150\",IF(T63=\"0 - 5 ANNI\",\"€ 100\",\"\"))))","v":""},null,null,null,null,null,null,null,null,null,null,{"$f":"IF(AF63>0,Z63*AF63,0)","v":0}]
[]
[]
[]
[null,{"$f":"IF('RISORSE UMANE'!B68<>\"\",'RISORSE UMANE'!B68,\"\")","v":""},null,null,null,null,null,null,{"$f":"IF('QUALIFICA E COMPETENZA R. U.'!K80<>\"\",'QUALIFICA E COMPETENZA R. U.'!K80,\"\")","v":""},null,null,null,null,null,null,null,null,null,null,null,null,null,null,null,null,{"$f":"IF(T67=\"> 15 ANNI\",\"€ 250\",IF(T67=\"11 - 15 ANNI\",\"€ 200\",IF(T67=\"6 - 10 ANNI\",\"€ 150\",IF(T67=\"0 - 5 ANNI\",\"€ 100\",\"\"))))","v":""},null,null,null,null,null,null,null,null,null,null,{"$f":"IF(AF67>0,Z67*AF67,0)","v":0}]
[]
[]
[]
[null,{"$f":"IF('RISORSE UMANE'!B72<>\"\",'RISORSE UMANE'!B72,\"\")","v":""},null,null,null,null,null,null,{"$f":"IF('QUALIFICA E COMPETENZA R. U.'!K84<>\"\",'QUALIFICA E COMPETENZA R. U.'!K84,\"\")","v":""},null,null,null,null,null,null,null,null,null,null,null,null,null,null,null,null,{"$f":"IF(T71=\"> 15 ANNI\",\"€ 250\",IF(T71=\"11 - 15 ANNI\",\"€ 200\",IF(T71=\"6 - 10 ANNI\",\"€ 150\",IF(T71=\"0 - 5 ANNI\",\"€ 100\",\"\"))))","v":""},null,null,null,null,null,null,null,null,null,null,{"$f":"IF(AF71>0,Z71*AF71,0)","v":0}]
[]
[]
[]
[null,{"$f":"IF('RISORSE UMANE'!B76<>\"\",'RISORSE UMANE'!B76,\"\")","v":""},null,null,null,null,null,null,{"$f":"IF('QUALIFICA E COMPETENZA R. U.'!K88<>\"\",'QUALIFICA E COMPETENZA R. U.'!K88,\"\")","v":""},null,null,null,null,null,null,null,null,null,null,null,null,null,null,null,null,{"$f":"IF(T75=\"> 15 ANNI\",\"€ 250\",IF(T75=\"11 - 15 ANNI\",\"€ 200\",IF(T75=\"6 - 10 ANNI\",\"€ 150\",IF(T75=\"0 - 5 ANNI\",\"€ 100\",\"\"))))","v":""},null,null,null,null,null,null,null,null,null,null,{"$f":"IF(AF75>0,Z75*AF75,0)","v":0}]
[]
[]
[]
[null,{"$f":"IF('RISORSE UMANE'!B80<>\"\",'RISORSE UMANE'!B80,\"\")","v":""},null,null,null,null,null,null,{"$f":"IF('QUALIFICA E COMPETENZA R. U.'!K92<>\"\",'QUALIFICA E COMPETENZA R. U.'!K92,\"\")","v":""},null,null,null,null,null,null,null,null,null,null,null,null,null,null,null,null,{"$f":"IF(T79=\"> 15 ANNI\",\"€ 250\",IF(T79=\"11 - 15 ANNI\",\"€ 200\",IF(T79=\"6 - 10 ANNI\",\"€ 150\",IF(T79=\"0 - 5 ANNI\",\"€ 100\",\"\"))))","v":""},null,null,null,null,null,null,null,null,null,null,{"$f":"IF(AF79>0,Z79*AF79,0)","v":0}]

{"sheet":"PIANO GENERALE DEI COSTI","index":9,"n_rows":65,"n_cols":34,"rows_kept":65,"cut":false,"hidden":false,"merged":[[38,32,39,37],[40,6,41,13],[40,14,41,21],[42,6,43,13],[44,6,45,13],[44,14,45,21],[36,22,37,26],[36,27,37,31],[64,1,64,37],[44,22,45,26],[44,27,45,31],[44,32,45,37],[36,1,45,5],[36,6,37,13],[36,14,37,21],[38,6,39,13],[38,14,39,21],[38,27,39,31],[46,1,47,31],[48,1,49,31],[50,1,51,31],[52,1,53,31],[46,32,47,37],[48,32,49,37],[3,1,3,37],[5,23,6,25],[7,31,8,37],[7,17,8,22],[7,14,8,16],[7,8,8,13],[7,1,8,7],[10,1,10,37],[14,1,15,32],[14,33,15,37],[24,27,25,31],[26,27,27,31],[28,27,29,31],[34,30,35,37],[42,27,43,31],[42,32,43,37],[32,6,33,13],[32,14,33,21],[32,22,33,29],[32,30,33,37],[34,6,35,13],[28,6,29,13],[34,14,35,21],[34,22,35,29],[36,32,37,37],[38,22,39,26],[30,1,31,32],[30,33,31,37],[32,1,35,5],[42,14,43,21],[40,22,41,26],[40,27,41,31],[40,32,41,37],[42,22,43,26],[0,1,1,37],[20,22,21,26],[20,27,21,31],[20,32,21,37],[22,22,23,26],[24,22,25,26],[26,22,27,26],[28,22,29,26],[22,27,23,31],[20,6,21,13],[20,14,21,21],[22,14,23,21],[24,14,25,21],[26,14,27,21],[28,14,29,21],[22,6,23,13],[24,6,25,13],[26,6,27,13],[20,1,29,5],[22,32,23,37],[24,32,25,37],[26,32,27,37],[28,32,29,37],[16,6,17,13],[16,14,17,21],[16,22,17,29],[16,30,17,37],[16,1,19,5],[18,6,19,13],[18,14,19,21],[18,22,19,29],[18,30,19,37],[5,1,6,7],[5,31,6,37],[12,1,13,32],[12,33,13,37],[7,23,8,25],[5,26,6,30],[7,26,8,30],[5,17,6,22],[5,14,6,16],[5,8,6,13],[50,32,51,37],[52,32,53,37],[54,1,55,31],[54,32,55,37],[62,1,63,31],[62,32,63,37],[56,32,57,37],[56,1,57,22],[56,23,56,31],[57,23,57,31],[58,1,59,31],[58,32,59,37],[60,1,61,31],[60,32,61,37]]}
[null,"SCHEDA DELLA PREVISIONE FINANZIARIA"]
[]
[]
[null,"ATTIVITA' DI FORMAZIONE COLLETTIVA"]
[]
[null,"CLASSE DI DURATA",null,null,null,null,null,null,"N. PARTECIPANTI PREVISTI",null,null,null,null,null,"UCS",null,null,"SPESA AMMISSIBILE",null,null,null,null,null,"N.ORE PREVISTE",null,null,"N. ORE  PER FAD",null,null,null,null,"ORE PREVISTE PER SEMINARI"]
[]
[null,{"$f":"IF(AND('MODELLO FORMATIVO'!AF8>=20,'MODELLO FORMATIVO'!AF8<=29),\"CORSO BREVE\",IF(AND('MODELLO FORMATIVO'!AF8>=30,'MODELLO FORMATIVO'!AF8<=89),\"CORSO MEDIO\",IF(AND('MODELLO FORMATIVO'!AF8>=90,'MODELLO FORMATIVO'!AF8<=150),\"CORSO LUNGO\",\"NON AMMISSIBILE\")))","v":"NON AMMISSIBILE"},null,null,null,null,null,null,{"$f":"'MODELLO FORMATIVO'!AA225","v":0},null,null,null,null,null,{"$f":"IF(B8=\"CORSO BREVE\",(25),(IF(B8=\"CORSO MEDIO\",(23.18),(IF(B8=\"CORSO LUNGO\",(21.11),(0))))))","v":0},null,null,{"$f":"'MODELLO FORMATIVO'!AF8*I8*O8","v":0},null,null,null,null,null,{"$f":"'MODELLO FORMATIVO'!AF8","v":0},null,null,{"$f":"'MODELLO FORMATIVO'!AA18","v":0},null,null,null,null,{"$f":"'MODELLO FORMATIVO'!AA19","v":0}]
[]
[]
[null,"ATTIVITA' DI TRASFERIMENTO INDIVIDUALE E DI COACHING"]
[]
[null,"COSTI AMMISSIBILI",null,null,null,null,null,null,null,null,null,null,null,null,null,null,null,null,null,null,null,null,null,null,null,null,null,null,null,null,null,null,null,"TOTALE PREVISTO"]
[]
[null,"A) Attività di progettazione, coordinamento e realizzazione delle attività",null,null,null,null,null,null,null,null,null,null,null,null,null,null,null,null,null,null,null,null,null,null,null,null,null,null,null,null,null,null,null,{"$f":"AE19+AG23+AG25+AG27+AG29","v":{"$error":"#DIV/0!"}}]
[]
[null,"PERSONALE DIPENDENTE",null,null,null,null,"Costo effettivo annuo lordo",null,null,null,null,null,null,null,"Monte ore annuo lordo",null,null,null,null,null,null,null,"N. ore dedicate al progetto",null,null,null,null,null,null,null,"Importo previsto"]
[]
[null,null,null,null,null,null,{"$f":"SUMIF('COSTO DELLE RISORSE UMANE'!I11:I42,\"Progettazione delle attività\",'COSTO DELLE RISORSE UMANE'!T11:T42)+SUMIF('COSTO DELLE RISORSE UMANE'!I11:I42,\"Coordinamento delle attività\",'COSTO DELLE RISORSE UMANE'!T11:T42)+SUMIF('COSTO DELLE RISORSE UMANE'!I11:I42,\"Realizzazione delle attività\",'COSTO DELLE RISORSE UMANE'!T11:T42)","v":0},null,null,null,null,null,null,null,{"$f":"SUMIF('COSTO DELLE RISORSE UMANE'!I11:I42,\"Progettazione delle attività\",'COSTO DELLE RISORSE UMANE'!AA11:AA42)+SUMIF('COSTO DELLE RISORSE UMANE'!I11:I42,\"Coordinamento delle attività\",'COSTO DELLE RISORSE UMANE'!AA11:AA42)+SUMIF('COSTO DELLE RISORSE UMANE'!I11:I42,\"Realizzazione delle attività\",'COSTO DELLE RISORSE UMANE'!AA11:AA42)","v":0},null,null,null,null,null,null,null,{"$f":"SUMIF('COSTO DELLE RISORSE UMANE'!I11:I42,\"Progettazione delle attività\",'COSTO DELLE RISORSE UMANE'!AJ11:AJ42)+SUMIF('COSTO DELLE RISORSE UMANE'!I11:I42,\"Coordinamento delle attività\",'COSTO DELLE RISORSE UMANE'!AJ11:AJ42)+SUMIF('COSTO DELLE RISORSE UMANE'!I11:I42,\"Realizzazione delle attività\",'COSTO DELLE RISORSE UMANE'!AJ11:AJ42)","v":0},null,null,null,null,null,null,null,{"$f":"(G19/O19)*W19","v":{"$error":"#DIV/0!"}}]
[]
[null,"SERVIZI PER CONSULENZA SPECIALISTICA (A PREVENTIVO)",null,null,null,null,"Esperienza nel settore specifico di consulenza",null,null,null,null,null,null,null,"Tariffa massima ammissibile giornaliera",null,null,null,null,null,null,null,"N. giorni dedicati al progetto",null,null,null,null,"Imp. Max ammissibile",null,null,null,null,"Importo previsto"]
[]
[null,null,null,null,null,null,"> 15 anni",null,null,null,null,null,null,null,250,null,null,null,null,null,null,null,{"$f":"SUMIFS('COSTO DELLE RISORSE UMANE'!AF51:AF82,'COSTO DELLE RISORSE UMANE'!I51:I82,\"Progettazione delle attività\",'COSTO DELLE RISORSE UMANE'!Z51:Z82,\"€ 250\")+SUMIFS('COSTO DELLE RISORSE UMANE'!AF51:AF82,'COSTO DELLE RISORSE UMANE'!I51:I82,\"Coordinamento delle attività\",'COSTO DELLE RISORSE UMANE'!Z51:Z82,\"€ 250\")+SUMIFS('COSTO DELLE RISORSE UMANE'!AF51:AF82,'COSTO DELLE RISORSE UMANE'!I51:I82,\"Realizzazione delle attività\",'COSTO DELLE RISORSE UMANE'!Z51:Z82,\"€ 250\")","v":0},null,null,null,null,{"$f":"O23*W23","v":0},null,null,null,null,{"$f":"SUMIFS('COSTO DELLE RISORSE UMANE'!AQ51:AQ82,'COSTO DELLE RISORSE UMANE'!I51:I82,\"Progettazione delle attività\",'COSTO DELLE RISORSE UMANE'!Z51:Z82,\"€ 250\")+SUMIFS('COSTO DELLE RISORSE UMANE'!AQ51:AQ82,'COSTO DELLE RISORSE UMANE'!I51:I82,\"Coordinamento delle attività\",'COSTO DELLE RISORSE UMANE'!Z51:Z82,\"€ 250\")+SUMIFS('COSTO DELLE RISORSE UMANE'!AQ51:AQ82,'COSTO DELLE RISORSE UMANE'!I51:I82,\"Realizzazione delle attività\",'COSTO DELLE RISORSE UMANE'!Z51:Z82,\"€ 250\")","v":0}]
[]
[null,null,null,null,null,null,"11 - 15 anni",null,null,null,null,null,null,null,200,null,null,null,null,null,null,null,{"$f":"SUMIFS('COSTO DELLE RISORSE UMANE'!AF51:AF82,'COSTO DELLE RISORSE UMANE'!I51:I82,\"Progettazione delle attività\",'COSTO DELLE RISORSE UMANE'!Z51:Z82,\"€ 200\")+SUMIFS('COSTO DELLE RISORSE UMANE'!AF51:AF82,'COSTO DELLE RISORSE UMANE'!I51:I82,\"Coordinamento delle attività\",'COSTO DELLE RISORSE UMANE'!Z51:Z82,\"€ 200\")+SUMIFS('COSTO DELLE RISORSE UMANE'!AF51:AF82,'COSTO DELLE RISORSE UMANE'!I51:I82,\"Realizzazione delle attività\",'COSTO DELLE RISORSE UMANE'!Z51:Z82,\"€ 200\")","v":0},null,null,null,null,{"$f":"O25*W25","v":0},null,null,null,null,{"$f":"SUMIFS('COSTO DELLE RISORSE UMANE'!AQ51:AQ82,'COSTO DELLE RISORSE UMANE'!I51:I82,\"Progettazione delle attività\",'COSTO DELLE RISORSE UMANE'!Z51:Z82,\"€ 200\")+SUMIFS('COSTO DELLE RISORSE UMANE'!AQ51:AQ82,'COSTO DELLE RISORSE UMANE'!I51:I82,\"Coordinamento delle attività\",'COSTO DELLE RISORSE UMANE'!Z51:Z82,\"€ 200\")+SUMIFS('COSTO DELLE RISORSE UMANE'!AQ51:AQ82,'COSTO DELLE RISORSE UMANE'!I51:I82,\"Realizzazione delle attività\",'COSTO DELLE RISORSE UMANE'!Z51:Z82,\"€ 200\")","v":0}]
[]
[null,null,null,null,null,null,"6 - 10 anni ",null,null,null,null,null,null,null,150,null,null,null,null,null,null,null,{"$f":"SUMIFS('COSTO DELLE RISORSE UMANE'!AF51:AF82,'COSTO DELLE RISORSE UMANE'!I51:I82,\"Progettazione delle attività\",'COSTO DELLE RISORSE UMANE'!Z51:Z82,\"€ 150\")+SUMIFS('COSTO DELLE RISORSE UMANE'!AF51:AF82,'COSTO DELLE RISORSE UMANE'!I51:I82,\"Coordinamento delle attività\",'COSTO DELLE RISORSE UMANE'!Z51:Z82,\"€ 150\")+SUMIFS('COSTO DELLE RISORSE UMANE'!AF51:AF82,'COSTO DELLE RISORSE UMANE'!I51:I82,\"Realizzazione delle attività\",'COSTO DELLE RISORSE UMANE'!Z51:Z82,\"€ 150\")","v":0},null,null,null,null,{"$f":"O27*W27","v":0},null,null,null,null,{"$f":"SUMIFS('COSTO DELLE RISORSE UMANE'!AQ51:AQ82,'COSTO DELLE RISORSE UMANE'!I51:I82,\"Progettazione delle attività\",'COSTO DELLE RISORSE UMANE'!Z51:Z82,\"€ 150\")+SUMIFS('COSTO DELLE RISORSE UMANE'!AQ51:AQ82,'COSTO DELLE RISORSE UMANE'!I51:I82,\"Coordinamento delle attività\",'COSTO DELLE RISORSE UMANE'!Z51:Z82,\"€ 150\")+SUMIFS('COSTO DELLE RISORSE UMANE'!AQ51:AQ82,'COSTO DELLE RISORSE UMANE'!I51:I82,\"Realizzazione delle attività\",'COSTO DELLE RISORSE UMANE'!Z51:Z82,\"€ 150\")","v":0}]
[]
[null,null,null,null,null,null,"0 - 5 anni",null,null,null,null,null,null,null,100,null,null,null,null,null,null,null,{"$f":"SUMIFS('COSTO DELLE RISORSE UMANE'!AF51:AF82,'COSTO DELLE RISORSE UMANE'!I51:I82,\"Progettazione delle attività\",'COSTO DELLE RISORSE UMANE'!Z51:Z82,\"€ 100\")+SUMIFS('COSTO DELLE RISORSE UMANE'!AF51:AF82,'COSTO DELLE RISORSE UMANE'!I51:I82,\"Coordinamento delle attività\",'COSTO DELLE RISORSE UMANE'!Z51:Z82,\"€ 100\")+SUMIFS('COSTO DELLE RISORSE UMANE'!AF51:AF82,'COSTO DELLE RISORSE UMANE'!I51:I82,\"Realizzazione delle attività\",'COSTO DELLE RISORSE UMANE'!Z51:Z82,\"€ 100\")","v":0},null,null,null,null,{"$f":"O29*W29","v":0},null,null,null,null,{"$f":"SUMIFS('COSTO DELLE RISORSE UMANE'!AQ51:AQ82,'COSTO DELLE RISORSE UMANE'!I51:I82,\"Progettazione delle attività\",'COSTO DELLE RISORSE UMANE'!Z51:Z82,\"€ 100\")+SUMIFS('COSTO DELLE RISORSE UMANE'!AQ51:AQ82,'COSTO DELLE RISORSE UMANE'!I51:I82,\"Coordinamento delle attività\",'COSTO DELLE RISORSE UMANE'!Z51:Z82,\"€ 100\")+SUMIFS('COSTO DELLE RISORSE UMANE'!AQ51:AQ82,'COSTO DELLE RISORSE UMANE'!I51:I82,\"Realizzazione delle attività\",'COSTO DELLE RISORSE UMANE'!Z51:Z82,\"€ 100\")","v":0}]
[]
[null,"B) Attività di docenza e di tutoraggio",null,null,null,null,null,null,null,null,null,null,null,null,null,null,null,null,null,null,null,null,null,null,null,null,null,null,null,null,null,null,null,{"$f":"AE35+AG39+AG41+AG43+AG45","v":{"$error":"#DIV/0!"}}]
[]
[null,"PERSONALE DIPENDENTE",null,null,null,null,"Costo effettivo annuo lordo",null,null,null,null,null,null,null,"Monte ore annuo lordo",null,null,null,null,null,null,null,"N. ore dedicate al progetto formativo",null,null,null,null,null,null,null,"Importo previsto"]
[]
[null,null,null,null,null,null,{"$f":"SUMIF('COSTO DELLE RISORSE UMANE'!I11:I42,\"Docenza\",'COSTO DELLE RISORSE UMANE'!T11:T42)+SUMIF('COSTO DELLE RISORSE UMANE'!I11:I42,\"Tutoraggio\",'COSTO DELLE RISORSE UMANE'!T11:T42)","v":0},null,null,null,null,null,null,null,{"$f":"SUMIF('COSTO DELLE RISORSE UMANE'!I11:I42,\"Docenza\",'COSTO DELLE RISORSE UMANE'!AA11:AA42)+SUMIF('COSTO DELLE RISORSE UMANE'!I11:I42,\"Tutoraggio\",'COSTO DELLE RISORSE UMANE'!AA11:AA42)","v":0},null,null,null,null,null,null,null,{"$f":"SUMIF('COSTO DELLE RISORSE UMANE'!I11:I42,\"Docenza\",'COSTO DELLE RISORSE UMANE'!AJ11:AJ42)+SUMIF('COSTO DELLE RISORSE UMANE'!I11:I42,\"Tutoraggio\",'COSTO DELLE RISORSE UMANE'!AJ11:AJ42)","v":0},null,null,null,null,null,null,null,{"$f":"(G35/O35)*W35","v":{"$error":"#DIV/0!"}}]
[]
[null,"SERVIZI PER CONSULENZA SPECIALISTICA (A PREVENTIVO)",null,null,null,null,"Esperienza nel settore specifico di consulenza",null,null,null,null,null,null,null,"Tariffa massima ammissibile giornaliera",null,null,null,null,null,null,null,"N. giorni dedicati al progetto",null,null,null,null,"Imp. Max ammissibile",null,null,null,null,"Importo previsto"]
[]
[null,null,null,null,null,null,"> 15 anni",null,null,null,null,null,null,null,250,null,null,null,null,null,null,null,{"$f":"SUMIFS('COSTO DELLE RISORSE UMANE'!AF51:AF82,'COSTO DELLE RISORSE UMANE'!I51:I82,\"Docenza\",'COSTO DELLE RISORSE UMANE'!Z51:Z82,\"€ 250\")+SUMIFS('COSTO DELLE RISORSE UMANE'!AF51:AF82,'COSTO DELLE RISORSE UMANE'!I51:I82,\"Tutoraggio\",'COSTO DELLE RISORSE UMANE'!Z51:Z82,\"€ 250\")","v":0},null,null,null,null,{"$f":"O39*W39","v":0},null,null,null,null,{"$f":"SUMIFS('COSTO DELLE RISORSE UMANE'!AQ51:AQ82,'COSTO DELLE RISORSE UMANE'!I51:I82,\"Docenza\",'COSTO DELLE RISORSE UMANE'!Z51:Z82,\"€ 250\")+SUMIFS('COSTO DELLE RISORSE UMANE'!AQ51:AQ82,'COSTO DELLE RISORSE UMANE'!I51:I82,\"Tutoraggio\",'COSTO DELLE RISORSE UMANE'!Z51:Z82,\"€ 250\")","v":0}]
[]
[null,null,null,null,null,null,"11 - 15 anni",null,null,null,null,null,null,null,200,null,null,null,null,null,null,null,{"$f":"SUMIFS('COSTO DELLE RISORSE UMANE'!AF51:AF82,'COSTO DELLE RISORSE UMANE'!I51:I82,\"Docenza\",'COSTO DELLE RISORSE UMANE'!Z51:Z82,\"€ 200\")+SUMIFS('COSTO DELLE RISORSE UMANE'!AF51:AF82,'COSTO DELLE RISORSE UMANE'!I51:I82,\"Tutoraggio\",'COSTO DELLE RISORSE UMANE'!Z51:Z82,\"€ 200\")","v":0},null,null,null,null,{"$f":"O41*W41","v":0},null,null,null,null,{"$f":"SUMIFS('COSTO DELLE RISORSE UMANE'!AQ51:AQ82,'COSTO DELLE RISORSE UMANE'!I51:I82,\"Docenza\",'COSTO DELLE RISORSE UMANE'!Z51:Z82,\"€ 200\")+SUMIFS('COSTO DELLE RISORSE UMANE'!AQ51:AQ82,'COSTO DELLE RISORSE UMANE'!I51:I82,\"Tutoraggio\",'COSTO DELLE RISORSE UMANE'!Z51:Z82,\"€ 200\")","v":0}]
[]
[null,null,null,null,null,null,"6 - 10 anni ",null,null,null,null,null,null,null,150,null,null,null,null,null,null,null,{"$f":"SUMIFS('COSTO DELLE RISORSE UMANE'!AF51:AF82,'COSTO DELLE RISORSE UMANE'!I51:I82,\"Docenza\",'COSTO DELLE RISORSE UMANE'!Z51:Z82,\"€ 150\")+SUMIFS('COSTO DELLE RISORSE UMANE'!AF51:AF82,'COSTO DELLE RISORSE UMANE'!I51:I82,\"Tutoraggio\",'COSTO DELLE RISORSE UMANE'!Z51:Z82,\"€ 150\")","v":0},null,null,null,null,{"$f":"O43*W43","v":0},null,null,null,null,{"$f":"SUMIFS('COSTO DELLE RISORSE UMANE'!AQ51:AQ82,'COSTO DELLE RISORSE UMANE'!I51:I82,\"Docenza\",'COSTO DELLE RISORSE UMANE'!Z51:Z82,\"€ 150\")+SUMIFS('COSTO DELLE RISORSE UMANE'!AQ51:AQ82,'COSTO DELLE RISORSE UMANE'!I51:I82,\"Tutoraggio\",'COSTO DELLE RISORSE UMANE'!Z51:Z82,\"€ 150\")","v":0}]
[]
[null,null,null,null,null,null,"0 - 5 anni",null,null,null,null,null,null,null,100,null,null,null,null,null,null,null,{"$f":"SUMIFS('COSTO DELLE RISORSE UMANE'!AF51:AF82,'COSTO DELLE RISORSE UMANE'!I51:I82,\"Docenza\",'COSTO DELLE RISORSE UMANE'!Z51:Z82,\"€ 100\")+SUMIFS('COSTO DELLE RISORSE UMANE'!AF51:AF82,'COSTO DELLE RISORSE UMANE'!I51:I82,\"Tutoraggio\",'COSTO DELLE RISORSE UMANE'!Z51:Z82,\"€ 100\")","v":0},null,null,null,null,{"$f":"O45*W45","v":0},null,null,null,null,{"$f":"SUMIFS('COSTO DELLE RISORSE UMANE'!AQ51:AQ82,'COSTO DELLE RISORSE UMANE'!I51:I82,\"Docenza\",'COSTO DELLE RISORSE UMANE'!Z51:Z82,\"€ 100\")+SUMIFS('COSTO DELLE RISORSE UMANE'!AQ51:AQ82,'COSTO DELLE RISORSE UMANE'!I51:I82,\"Tutoraggio\",'COSTO DELLE RISORSE UMANE'!Z51:Z82,\"€ 100\")","v":0}]
[]
[null,"C) Noleggio di attrezzature e acquisto di materiale didattico (*)"]
[]
[null,"D) Acquisto di materiale di consumo per esercitazioni (*)"]
[]
[null,"E) Affitto e noleggio di aule e strutture didattiche (*)"]
[]
[null,"F) Spese per eventuali visite didattiche: spese per noleggio dei mezzi di trasporto collettivi, nei limiti del costo orario (*)"]
[]
[null,"TOTALE",null,null,null,null,null,null,null,null,null,null,null,null,null,null,null,null,null,null,null,null,null,null,null,null,null,null,null,null,null,null,{"$f":"AH15+AH31+AG47+AG49+AG51+AG53","v":{"$error":"#DIV/0!"}}]
[]
[null,"G) Sperse generali nel limite del 5% delle spese ammissibili",null,null,null,null,null,null,null,null,null,null,null,null,null,null,null,null,null,null,null,null,null,"limite max ammissibile "]
[null,null,null,null,null,null,null,null,null,null,null,null,null,null,null,null,null,null,null,null,null,null,null,{"$f":"AG55/100*5","v":{"$error":"#DIV/0!"}}]
[null,"TOTALE PREVISTO PER IL PROGETTO FORMATIVO",null,null,null,null,null,null,null,null,null,null,null,null,null,null,null,null,null,null,null,null,null,null,null,null,null,null,null,null,null,null,{"$f":"AG57+AG55","v":{"$error":"#DIV/0!"}}]
[]
[null,"COSTO MASSIMO AMMISSIBILE (COACHING)",null,null,null,null,null,null,null,null,null,null,null,null,null,null,null,null,null,null,null,null,null,null,null,null,null,null,null,null,null,null,{"$f":"75*'MODELLO FORMATIVO'!AF12*'MODELLO FORMATIVO'!AI225","v":0}]
[]
[null,"COSTO MASSIMO AMMISSIBILE (TRASFERIMENTO INDIVIDUALE)",null,null,null,null,null,null,null,null,null,null,null,null,null,null,null,null,null,null,null,null,null,null,null,null,null,null,null,null,null,null,{"$f":"75*'MODELLO FORMATIVO'!AE225*'MODELLO FORMATIVO'!AF10","v":0}]
[]
[null,"(*) Le seguenti voci di costo dovranno essere preventivate attraverso una procedura di selezione basata sul confronto di almeno 3 preventivi."]